lending/lending_fUSD_20240509
["ID","MTS","AMOUNT","RATE_DAILY","PERIOD"]
[326688286,1715232658359,-324.92839964,0.00025785,2]
[326688287,1715232860183,572.49269882,0.00012998,7]
[326688288,1715232876169,573.2322283,0.00012998,7]
[326688289,1715233128605,-267.96563009,0.00012895,2]
[326688290,1715233128627,-183.5600075,0.00012896,2]
[326688291,1715233128649,-522.78326127,0.00012897,2]
[326688292,1715233128671,-2500.0,0.000129,2]
[326688293,1715233128692,-361.80417443,0.00012998,2]
[326688294,1715233144010,427.85364958,0.00012998,2]
[326688295,1715233144061,522.78326127,0.00012999,2]
[326688296,1715233146792,254.72435489,0.00012999,2]
[326688297,1715233148718,22.52566097,0.00012999,2]
[326688298,1715233191251,545.2041,0.00012796,2]
[326688300,1715233394902,430.20972578,0.00012796,2]
[326688301,1715233560663,2545.14684972,9.597e-05,2]
[326688302,1715233561288,268.93749325,0.00011698,2]
[326688303,1715233564321,210.50183125,0.00012796,2]
[326688304,1715233564344,128.98740865,0.00012796,2]
[326688305,1715233566376,3871.01259135,0.00012796,2]
[326688306,1715233566403,4000.0,0.00012796,2]
[326688307,1715233566431,4000.0,0.00012796,2]
[326688308,1715233566456,4000.0,0.00012796,2]
[326688309,1715233566481,4000.0,0.00012796,2]
[326688310,1715233566505,4000.0,0.00012796,2]
[326688311,1715233566532,4000.0,0.00012796,2]
[326688312,1715233566560,4000.0,0.00012796,2]
[326688313,1715233566585,4000.0,0.00012796,2]
[326688314,1715233571674,1127.86297562,0.00012348,7]
[326688315,1715233572760,523.41509489,0.00010237,2]
[326688316,1715233576616,2404.19236042,9.597e-05,2]
[326688330,1715233837047,-1623.45850459,0.00012683,2]
[326688331,1715233837058,-3280.62102371,0.00012683,2]
[326688332,1715233837068,-427.98536419,0.00012683,2]
[326688333,1715233837079,-4591.42341058,0.00012683,2]
[326688334,1715233837089,-782.10515088,0.00012684,2]
[326688335,1715233837099,-161.87288998,0.00012685,2]
[326688336,1715233837110,-5268.05984229,0.00012695,2]
[326688337,1715233837120,-2203.435,0.00012696,2]
[326688338,1715233837130,-10106.1597,0.00012696,2]
[326688339,1715233837139,-152.5,0.00012786,2]
[326688340,1715233837149,-335.26874232,0.00012794,2]
[326688341,1715233837159,-24786.50873416,0.00012794,2]
[326688342,1715233837172,-270.26587227,0.00012794,2]
[326688343,1715233837184,-274.32636743,0.00012794,2]
[326688346,1715233842173,-617.0,0.00012794,2]
[326688363,1715233844119,-2986.13353,0.00012794,2]
[326688364,1715233844131,-1526.73400384,0.00012794,2]
[326688365,1715233844143,-11939.18308989,0.00012794,2]
[326688366,1715233844155,-361.1915894,0.00012794,2]
[326688367,1715233844167,-3837.41000005,0.00012794,2]
[326688368,1715233844179,-7075.40521205,0.00012794,2]
[326688369,1715233844190,-8915.30697543,0.00012795,2]
[326688370,1715233844200,-183511.2983427,0.00012796,2]
[326688371,1715233844210,-547.92469496,0.00012796,2]
[326688372,1715233844219,-8644.3069,0.000128,2]
[326688373,1715233844229,-3072.35272229,0.00012868,2]
[326688374,1715233844240,-36073.36464867,0.00012899,2]
[326688375,1715233844249,-1000.0,0.000129,2]
[326688376,1715233844259,-1000.0,0.000129,2]
[326688377,1715233844271,-256.5848,0.000129,2]
[326688378,1715233844281,-499.99,0.000129,2]
[326688379,1715233844291,-2500.0,0.000129,2]
[326688380,1715233844301,-906.8676,0.000129,2]
[326688381,1715233844310,-20286.63443243,0.0001299,2]
[326688382,1715233844320,-154.6568369,0.0001299,2]
[326688383,1715233844332,-154.6568369,0.0001299,2]
[326688384,1715233844342,-154.6568369,0.0001299,2]
[326688385,1715233844352,-152.5,0.0001299,2]
[326688386,1715233844365,-152.5,0.0001299,2]
[326688387,1715233844375,-522.50597865,0.00012998,2]
[326688388,1715233844386,-685.0391656,0.00012998,2]
[326688389,1715233844396,-155.80805861,0.00012998,2]
[326688390,1715233844405,-156.0953077,0.00012998,2]
[326688391,1715233844416,-597.20123301,0.00012998,2]
[326688392,1715233844425,-155.60602003,0.00012998,2]
[326688393,1715233844436,-207.95050793,0.00012998,2]
[326688394,1715233844447,-155.28638298,0.00012998,2]
[326688395,1715233844458,-155.47277346,0.00012998,2]
[326688396,1715233844467,-166.71318567,0.00012998,2]
[326688397,1715233844477,-429.98904909,0.00012998,2]
[326688398,1715233844487,-156.37446271,0.00012998,2]
[326688399,1715233844497,-155.12665646,0.00012998,2]
[326688400,1715233844508,-155.24966855,0.00012998,2]
[326688401,1715233844518,-155.22609071,0.00012998,2]
[326688402,1715233844529,-155.06893201,0.00012998,2]
[326688403,1715233844539,-1212.20342963,0.00012998,2]
[326688404,1715233844549,-155.3763363,0.00012998,2]
[326688405,1715233844559,-318.76754807,0.00012998,2]
[326688406,1715233844569,-709.11248147,0.00012998,2]
[326688407,1715233844580,-155.66401553,0.00012998,2]
[326688408,1715233844591,-279.86838749,0.00012998,2]
[326688409,1715233844601,-155.22103494,0.00012998,2]
[326688410,1715233844612,-218.45783797,0.00012998,2]
[326688411,1715233844622,-312.80892937,0.00012998,2]
[326688412,1715233844636,-671.07,0.00012998,2]
[326688413,1715233844646,-337.18905461,0.00012999,2]
[326688414,1715233844656,-262648.98920947,0.00013,2]
[326688415,1715233844671,-1051364.7363867,0.00013,2]
[326688416,1715233844683,-652.13429658,0.00013,2]
[326688417,1715233844695,-404.24487,0.00013,2]
[326688418,1715233848658,-491141.69154289,0.00013,2]
[326688421,1715233848671,-61700.0,0.00013,2]
[326688425,1715233848683,-2000.0,0.00013,2]
[326688430,1715233848695,-440.334,0.00013,2]
[326688433,1715233848706,-1866.7651023,0.00013,2]
[326688435,1715233848719,-8957.9040622,0.00013,2]
[326688436,1715233895128,550.43129519,0.0001,2]
[326688437,1715234488064,945.417731,0.00012492,2]
[326688438,1715234488251,551.15011155,0.0001,2]
[326688439,1715234510340,424.78992403,9e-05,2]
[326688440,1715234558250,2323.03483276,9e-05,2]
[326688441,1715234563896,1044.85572424,6.75e-05,2]
[326688442,1715234578396,175.66,0.00010735,2]
[326688443,1715234584326,423.1768076,8.1e-05,2]
[326688445,1715234771266,214.87,0.00012342,2]
[326688446,1715234776478,10000.0,0.00012342,2]
[326688447,1715234787481,500.0,0.00012342,3]
[326688448,1715234796194,160.32903933,0.00012436,2]
[326688449,1715234801987,620.17,0.00012239,2]
[326688450,1715234827209,1150.63,0.00012273,2]
[326688451,1715234844672,179.97957058,0.00012239,2]
[326688452,1715234866668,179.97957058,0.00012239,2]
[326688453,1715234874409,170.97,0.00012273,2]
[326688454,1715234890925,181.21173415,0.00012239,2]
[326688455,1715235002559,1702.56,0.00012239,2]
[326688457,1715235038999,-155.0,0.00012517,2]
[326688459,1715235039011,-528.15150967,0.00012517,2]
[326688461,1715235039021,-155.0,0.00012518,2]
[326688462,1715235039032,-427.98536419,0.00012518,2]
[326688463,1715235039044,-267.96563009,0.00012518,2]
[326688465,1715235039054,-782.10515088,0.00012518,2]
[326688466,1715235039064,-522.78326127,0.00012519,2]
[326688468,1715235039075,-160.32903932,0.00012668,2]
[326688470,1715235039085,-3501.49195481,0.00012821,2]
[326688472,1715235039095,-3862.0685,0.00012899,2]
[326688474,1715235039105,-2498.8735,0.00012899,2]
[326688476,1715235039114,-864.28172909,0.00012899,2]
[326688478,1715235039124,-1436.09571061,0.000129,2]
[326688479,1715235039134,-172.49380918,0.000129,2]
[326688480,1715235039145,-160.32903932,0.000129,2]
[326688481,1715235039155,-170.94053024,0.000129,2]
[326688482,1715235039164,-909.74005401,0.000129,2]
[326688483,1715235039175,-170.94453194,0.00012985,2]
[326688484,1715235039186,-150.99,0.00012985,2]
[326688485,1715235039196,-499.99,0.00012985,2]
[326688486,1715235039206,-1757.4088494,0.00012986,2]
[326688487,1715235039216,-4584.53301792,0.00012987,2]
[326688488,1715235039226,-11359.0,0.00012987,2]
[326688489,1715235039236,-399.56427023,0.0001299,2]
[326688490,1715235039246,-151.21,0.0001299,2]
[326688491,1715235039256,-151.21,0.0001299,2]
[326688492,1715235039266,-151.21,0.0001299,2]
[326688493,1715235039276,-193.41308259,0.0001299,2]
[326688494,1715235039286,-411.05665986,0.00012997,2]
[326688495,1715235039295,-158.1052925,0.00012998,2]
[326688496,1715235039305,-275.63900671,0.00012998,2]
[326688497,1715235039315,-490.48999384,0.00012998,2]
[326688498,1715235039325,-281.81268896,0.00012998,2]
[326688499,1715235039335,-1393.64726581,0.00012998,2]
[326688500,1715235039345,-1214.03292019,0.00012998,2]
[326688501,1715235039356,-155.34301019,0.00012999,2]
[326688502,1715235039366,-3276.54967958,0.00012999,2]
[326688503,1715235039376,-3835.74179646,0.00012999,2]
[326688504,1715235039386,-79978.47315117,0.00012999,2]
[326688505,1715235039399,-14711.99377727,0.00012999,2]
[326688506,1715235039410,-395.58007361,0.00012999,2]
[326688507,1715235039422,-17124.03348161,0.00012999,2]
[326688508,1715235039434,-1867.54663435,0.00012999,2]
[326688509,1715235039446,-292.82652537,0.00012999,2]
[326688510,1715235039458,-1421.105003,0.00012999,2]
[326688511,1715235044365,-151.21,0.0001299,2]
[326688515,1715235044375,-2759.43565025,0.00012999,2]
[326688519,1715235044387,-2030.1395477,0.00012999,2]
[326688529,1715235044420,-17944.23599136,0.00012999,2]
[326688548,1715235049098,-151.21,0.0001299,2]
[326688549,1715235049108,-245.79,0.00012999,2]
[326688550,1715235049121,-44064.31185619,0.00012999,2]
[326688551,1715235049133,-3812.77021867,0.00012999,2]
[326688555,1715235123006,250.0,0.00012342,2]
[326688556,1715235181789,3447.37,0.000125,2]
[326688558,1715235583144,1500.0,0.00012329,2]
[326688559,1715235585551,23900.0,0.00012329,2]
[326688560,1715235648269,250.0,0.00012333,2]
[326688561,1715235659621,155.0,0.000125,2]
[326688562,1715235725655,160.7,0.00012375,2]
[326688563,1715235725884,160.7,0.00012434,2]
[326688564,1715235726137,160.7,0.00012493,2]
[326688565,1715235765799,522.78326127,0.000125,2]
[326688566,1715235883367,193.44,0.00012139,2]
[326688567,1715235893230,500.0,0.00011994,2]
[326688568,1715235940952,522.78326127,0.000125,2]
[326688569,1715235960587,250.0,0.00012007,2]
[326688570,1715236108559,250.0,0.00012145,2]
[326688571,1715236109619,1134.36,0.00012061,2]
[326688572,1715236126000,23900.0,0.0001207,2]
[326688573,1715236126947,23900.0,0.0001207,2]
[326688574,1715236127949,522.78326127,0.000125,2]
[326688575,1715236234750,-267.96563009,0.00012617,2]
[326688576,1715236234761,-176.73,0.00012618,2]
[326688577,1715236234774,-1000.0,0.00012665,2]
[326688578,1715236234784,-499.99,0.00012677,2]
[326688579,1715236234794,-190.36,0.00012743,2]
[326688580,1715236234804,-604.71286569,0.00012755,2]
[326688581,1715236234818,-957.4249472,0.00012755,2]
[326688582,1715236234828,-3501.49195481,0.00012766,2]
[326688583,1715236234838,-160.7,0.00012792,2]
[326688584,1715236234847,-210.3673,0.000128,2]
[326688585,1715236234857,-160.7,0.00012876,2]
[326688586,1715236234868,-151.23,0.0001289,2]
[326688587,1715236234878,-522.32112357,0.00012897,2]
[326688588,1715236234887,-165.91738265,0.00012898,2]
[326688589,1715236234897,-26025.34729174,0.00012899,2]
[326688590,1715236238480,-490.1733676,0.00012899,2]
[326688594,1715236238492,-1100.0,0.00012899,2]
[326688597,1715236238505,-967.5007119,0.00012899,2]
[326688603,1715236245297,-2348.40046312,0.00012899,2]
[326688608,1715236245309,-896.82060245,0.00012899,2]
[326688611,1715236245321,-444.24779552,0.00012899,2]
[326688612,1715236245337,-993.12736041,0.00012899,2]
[326688624,1715236250214,-1027.0919997,0.00012899,2]
[326688627,1715236250228,-2359.15775752,0.00012899,2]
[326688630,1715236250240,-1021.70851978,0.00012899,2]
[326688633,1715236250252,-549.5572481,0.00012899,2]
[326688635,1715236250264,-6028.6047016,0.00012899,2]
[326688637,1715236250278,-1168.47120077,0.00012899,2]
[326688639,1715236250288,-1862.52795251,0.000129,2]
[326688665,1715236268317,478.41021415,0.00012253,2]
[326688666,1715236299334,1542.73632232,0.000125,2]
[326688667,1715236301452,411.04998031,0.000125,2]
[326688669,1715236407609,334.93,0.00012409,2]
[326688670,1715236487704,250.0,0.00012211,2]
[326688671,1715236557438,1335.215626,0.00012492,2]
[326688672,1715236621506,250.0,0.0001236,2]
[326688673,1715236647806,7800.15,0.00012279,2]
[326688674,1715236674340,755.9,0.00012214,2]
[326688675,1715236708457,173.93,0.00012213,2]
[326688676,1715236920175,160.7,0.00012426,2]
[326688677,1715236925025,193.44,0.00012188,2]
[326688678,1715236932922,-336.34366022,0.00028,30]
[326688679,1715236933012,-1215.35583,0.00029124,30]
[326688680,1715236933092,-1316.94,0.0003,30]
[326688681,1715236933156,-642.23284316,0.0003,120]
[326688682,1715236933258,-500.0,0.00031,120]
[326688683,1715236933336,-500.0,0.000315,120]
[326688684,1715236933412,-500.0,0.00032,120]
[326688685,1715236933475,-3000.0,0.00032,30]
[326688686,1715236933539,-519.66943253,0.00032,120]
[326688687,1715236933617,-500.0,0.000325,120]
[326688688,1715236933682,-750.0,0.00032876,30]
[326688689,1715236933743,-750.0,0.00032876,30]
[326688690,1715236933805,-750.0,0.00032876,30]
[326688691,1715236933868,-750.0,0.00032876,30]
[326688692,1715236933929,-775.36325759,0.00032876,30]
[326688693,1715236933994,-2000.0,0.00032876,90]
[326688694,1715236934055,-2000.0,0.00032876,90]
[326688695,1715236934127,-2000.0,0.00032876,90]
[326688696,1715236934190,-2000.0,0.00032876,90]
[326688697,1715236934253,-2000.0,0.00032876,90]
[326688698,1715236934313,-2000.0,0.00032876,90]
[326688699,1715236934374,-2000.0,0.00032876,90]
[326688700,1715236934436,-2000.0,0.00032876,90]
[326688701,1715236934500,-2000.0,0.00032876,90]
[326688702,1715236934567,-2000.0,0.00032876,90]
[326688703,1715236934636,-2000.0,0.00032876,90]
[326688704,1715236934716,-500.68843956,0.00033,120]
[326688705,1715236934780,-157.71922568,0.00033,120]
[326688706,1715236934845,-31865.8656,0.00033,60]
[326688707,1715236934912,-2000.0,0.00033424,90]
[326688708,1715236934987,-2000.0,0.00033972,90]
[326688709,1715236935059,-3000.0,0.00034,58]
[326688710,1715236935123,-3000.0,0.00034,57]
[326688711,1715236935186,-3000.0,0.00034,56]
[326688712,1715236935253,-1208.0,0.0003413,30]
[326688713,1715236935317,-3000.0,0.000345,55]
[326688714,1715236935380,-1671.22,0.000345,54]
[326688715,1715236935443,-254.87879847,0.0003452,90]
[326688716,1715236935517,-32865.8658,0.000348,60]
[326688717,1715236935580,-3000.0,0.00035,60]
[326688718,1715236935643,-3000.0,0.00035,59]
[326688719,1715236935706,-250.83758399,0.00035,30]
[326688720,1715236935768,-1271.98473076,0.00035,30]
[326688721,1715236935842,-2004.65814243,0.000356,30]
[326688722,1715236935911,-1000.0,0.00035616,30]
[326688723,1715236935975,-200.99,0.0003589,120]
[326688724,1715236936048,-1000.0,0.00036164,30]
[326688725,1715236936119,-1000.0,0.00036712,30]
[326688726,1715236936181,-445.82202784,0.00037,30]
[326688727,1715236936243,-2644.0,0.00037,60]
[326688728,1715236936313,-1000.0,0.0003726,30]
[326688729,1715236936382,-1000.0,0.00037808,30]
[326688730,1715236936446,-523.67392726,0.00038,30]
[326688731,1715236936507,-250.0,0.00038,80]
[326688732,1715236936568,-3000.0,0.00038,30]
[326688733,1715236936631,-182.81086462,0.00038,90]
[326688734,1715236936692,-1007.0,0.00038,60]
[326688735,1715236936761,-1000.0,0.00038356,30]
[326688736,1715236936824,-700.0,0.000385,120]
[326688737,1715236936888,-1545.2,0.00038849,30]
[326688738,1715236936950,-883.00567932,0.000389,30]
[326688739,1715236937013,-1545.2,0.00038904,30]
[326688740,1715236937102,-1000.0,0.00038904,30]
[326688741,1715236937167,-1000.0,0.00038904,120]
[326688742,1715236937230,-1545.2,0.00038958,30]
[326688743,1715236937295,-979.52182823,0.00039,30]
[326688744,1715236937356,-1079.0,0.00039,120]
[326688745,1715236937416,-663.45398032,0.00039,120]
[326688746,1715236937478,-380.0,0.00039,120]
[326688747,1715236937538,-1545.2,0.00039013,30]
[326688748,1715236937602,-1545.2,0.00039068,30]
[326688749,1715236937662,-1545.2,0.00039123,30]
[326688750,1715236937722,-2500.0,0.00039124,90]
[326688751,1715236937783,-617.10153258,0.00039143,30]
[326688752,1715236937845,-1545.2,0.00039178,30]
[326688753,1715236937905,-1545.2,0.00039232,30]
[326688754,1715236938125,-1545.2,0.00039287,30]
[326688755,1715236938188,-1545.2,0.00039342,30]
[326688756,1715236938248,-1545.2,0.00039397,30]
[326688757,1715236938310,-1545.2,0.00039452,30]
[326688758,1715236938378,-1000.0,0.00039452,30]
[326688759,1715236938438,-1545.2,0.00039506,30]
[326688760,1715236938500,-1545.2,0.00039561,30]
[326688761,1715236938562,-1545.2,0.00039616,30]
[326688762,1715236938622,-1545.2,0.00039671,30]
[326688763,1715236938685,-141718.17352508,0.000397,90]
[326688764,1715236938747,-1545.2,0.00039726,30]
[326688765,1715236938808,-11694.02,0.0003977,30]
[326688766,1715236938880,-11694.02,0.0003977,30]
[326688767,1715236938977,-11694.02,0.0003977,30]
[326688768,1715236939072,-11694.02,0.0003977,30]
[326688769,1715236939136,-1545.2,0.0003978,30]
[326688770,1715236939199,-1545.2,0.00039835,30]
[326688771,1715236939263,-771.1847169,0.0003987,30]
[326688772,1715236939327,-1545.2,0.0003989,30]
[326688773,1715236939388,-151.132828,0.000399,33]
[326688774,1715236939452,-1545.2,0.00039945,30]
[326688775,1715236939517,-3641.98779536,0.0003995,30]
[326688776,1715236939579,-405.0,0.00039986,120]
[326688777,1715236939641,-1000.0,0.0004,30]
[326688778,1715236939707,-33645.74823535,0.0004,90]
[326688779,1715236939767,-2878.7514067,0.0004,30]
[326688780,1715236939828,-394.15021194,0.0004,30]
[326688781,1715236939890,-3116.30686944,0.0004,120]
[326688782,1715236939954,-3028.64538888,0.0004,120]
[326688783,1715236940016,-201.58102916,0.0004,30]
[326688784,1715236940080,-367.26299635,0.0004,30]
[326688785,1715236940143,-157.94863373,0.0004,30]
[326688786,1715236940207,-1025.81689689,0.0004,120]
[326688787,1715236940268,-741.44577528,0.0004,30]
[326688788,1715236940330,-604.39401281,0.0004,120]
[326688789,1715236940392,-320.08525693,0.0004,30]
[326688790,1715236940455,-2000.0,0.0004,30]
[326688791,1715236940520,-2563.0,0.0004,60]
[326688792,1715236940583,-60458.0,0.0004,30]
[326688793,1715236940647,-1250.0,0.0004,120]
[326688794,1715236940712,-311.0,0.0004,30]
[326688795,1715236940774,-1000.0,0.0004,120]
[326688796,1715236940836,-1000.0,0.0004,120]
[326688797,1715236940897,-297.0,0.0004,30]
[326688798,1715236940960,-2488.26568929,0.0004,60]
[326688799,1715236941034,-500.0,0.0004,30]
[326688800,1715236941100,-14658.72,0.0004,45]
[326688801,1715236941180,-9079.9202914,0.0004,120]
[326688802,1715236941251,-157582.02107054,0.0004,30]
[326688803,1715236941336,-129440.52238247,0.0004,30]
[326688804,1715236941400,-84046.8459831,0.0004,30]
[326688805,1715236941470,-343.92,0.0004,120]
[326688806,1715236941532,-851.16,0.0004,120]
[326688807,1715236941596,-1545.2,0.0004,30]
[326688808,1715236941672,-11694.02,0.00040044,30]
[326688809,1715236941733,-11694.02,0.00040044,30]
[326688810,1715236941795,-1545.2,0.00040054,30]
[326688811,1715236941858,-1545.27013483,0.00040109,30]
[326688812,1715236941920,-10002.24257897,0.000402,120]
[326688813,1715236941982,-10002.24257896,0.000402,120]
[326688814,1715236942045,-10002.24257896,0.000402,120]
[326688815,1715236942107,-10002.24257896,0.000402,120]
[326688816,1715236942169,-10002.24257896,0.000402,120]
[326688817,1715236942231,-11694.02,0.00040317,30]
[326688818,1715236942293,-11694.02,0.00040317,30]
[326688819,1715236942354,-2908.4,0.00040327,79]
[326688820,1715236942415,-230.218237,0.000404,30]
[326688821,1715236942476,-1000.0,0.00040548,30]
[326688822,1715236942537,-11694.02,0.0004059,30]
[326688823,1715236942601,-11694.02,0.0004059,30]
[326688824,1715236942662,-11694.02,0.00040863,30]
[326688825,1715236942723,-11694.02,0.00040863,30]
[326688826,1715236942789,-1180.14915975,0.000409,60]
[326688827,1715236942850,-822.70136939,0.00040993,120]
[326688828,1715236942915,-587.17173335,0.00040996,120]
[326688829,1715236942977,-2709.23194395,0.00040998,41]
[326688830,1715236943041,-380.56913847,0.00041,60]
[326688831,1715236943103,-106517.60740117,0.00041,60]
[326688832,1715236943166,-1304.78954659,0.00041,30]
[326688833,1715236943229,-2000.0,0.00041,30]
[326688834,1715236943294,-1617.0,0.00041,120]
[326688835,1715236943358,-20191.69687625,0.00041,120]
[326688836,1715236943428,-10338.65509671,0.00041,120]
[326688837,1715236943492,-1150.0,0.00041,120]
[326688838,1715236943556,-1000000.0,0.00041,30]
[326688839,1715236943620,-662.65393288,0.00041,120]
[326688840,1715236943680,-2387.0,0.00041,30]
[326688841,1715236943740,-3005.4144509,0.00041,120]
[326688842,1715236943801,-1000.0,0.00041095,60]
[326688843,1715236943861,-1000.0,0.00041095,60]
[326688844,1715236943921,-1000.0,0.00041095,60]
[326688845,1715236943981,-346.58625206,0.00041095,60]
[326688846,1715236944043,-1000.0,0.00041096,60]
[326688847,1715236944102,-217.1712302,0.000411,120]
[326688848,1715236944165,-11694.02,0.00041137,30]
[326688849,1715236944226,-11694.02,0.00041137,30]
[326688850,1715236944286,-767732.1545607,0.0004123,30]
[326688851,1715236944346,-1100.0,0.000413,30]
[326688852,1715236944408,-150.0,0.00041317,30]
[326688853,1715236944470,-150.0,0.00041317,30]
[326688854,1715236944532,-240.37906398,0.0004138,120]
[326688855,1715236944600,-11694.02,0.0004141,30]
[326688856,1715236944663,-11694.02,0.0004141,30]
[326688857,1715236944863,-1000000.0,0.000415,35]
[326688858,1715236944926,-10000.0,0.000416,120]
[326688859,1715236944988,-20000.0,0.000416,120]
[326688860,1715236945060,-20000.0,0.000416,120]
[326688861,1715236945122,-277278.44017997,0.00041638,30]
[326688862,1715236945186,-277278.44017997,0.00041644,30]
[326688863,1715236945250,-678.46165361,0.00041646,30]
[326688864,1715236945314,-678.46165361,0.00041646,30]
[326688865,1715236945405,-357.79203165,0.00041649,30]
[326688866,1715236945473,-1199.999999,0.00041654,31]
[326688867,1715236945537,-41309.45522822,0.00041669,30]
[326688868,1715236945601,-150.0,0.0004168,30]
[326688869,1715236945664,-11694.02,0.00041683,30]
[326688870,1715236945726,-11694.02,0.00041683,30]
[326688871,1715236945788,-277278.44017997,0.00041699,30]
[326688872,1715236945849,-250.0,0.000417,120]
[326688873,1715236945910,-150.73679125,0.00041707,30]
[326688874,1715236945968,-150.73679125,0.00041717,30]
[326688875,1715236946027,-357.79203165,0.00041718,30]
[326688876,1715236946086,-26409.2560767,0.0004172,30]
[326688919,1715236957639,-14900.19915152,0.0004172,30]
[326688920,1715236957699,-150.73679125,0.00041751,30]
[326688921,1715236957762,-1053.61504,0.00041752,30]
[326688922,1715236957830,-357.79203165,0.00041754,30]
[326688923,1715236957892,-678.46165361,0.00041761,30]
[326688924,1715236957954,-41309.45522822,0.00041788,30]
[326688925,1715236958018,-1100.0,0.00041848,30]
[326688926,1715236958080,-1300.0,0.00041848,30]
[326688927,1715236958141,-515.36473631,0.00041848,30]
[326688928,1715236958203,-2033.72238742,0.00041869,40]
[326688929,1715236958266,-11694.02,0.00041956,30]
[326688930,1715236958329,-11694.02,0.00041956,30]
[326688931,1715236958391,-541.0465206,0.00042,120]
[326688932,1715236958450,-2000.0,0.00042,30]
[326688933,1715236958515,-100427.61866837,0.00042,30]
[326688934,1715236958576,-1050.0,0.00042,120]
[326688935,1715236958638,-20000.0,0.00042,120]
[326688936,1715236958700,-10000.0,0.00042,120]
[326688937,1715236958760,-15000.0,0.00042,120]
[326688938,1715236958822,-15000.0,0.00042,120]
[326688939,1715236958883,-10000.0,0.00042,120]
[326688940,1715236958944,-20000.0,0.00042,120]
[326688941,1715236959008,-1000000.0,0.00042,40]
[326688942,1715236959071,-491.98080964,0.00042,120]
[326688943,1715236959136,-2220.6409038,0.00042,30]
[326688944,1715236959200,-150.0,0.00042042,30]
[326688945,1715236959265,-150.0,0.00042042,30]
[326688946,1715236959327,-290.2460749,0.000421,30]
[326688947,1715236959389,-11694.02,0.0004223,30]
[326688948,1715236959454,-11694.02,0.0004223,30]
[326688949,1715236959524,-147107.06700432,0.0004225,120]
[326688950,1715236959594,-1100.0,0.00042396,30]
[326688951,1715236959843,-1300.0,0.00042396,30]
[326688952,1715236959916,-1100.76220459,0.000424,30]
[326688953,1715236959985,-686.99704275,0.000424,120]
[326688954,1715236960052,-150.0,0.00042405,30]
[326688955,1715236960120,-150.0,0.00042405,30]
[326688956,1715236960186,-50556.95836792,0.0004248,120]
[326688957,1715236960252,-215.40285468,0.000425,30]
[326688958,1715236960316,-385.03421693,0.000425,30]
[326688959,1715236960379,-1000000.0,0.000425,45]
[326688960,1715236960442,-11694.02,0.00042503,30]
[326688961,1715236960506,-11694.02,0.00042503,30]
[326688962,1715236960571,-150.0,0.00042767,30]
[326688963,1715236960639,-800.0,0.000429,30]
[326688964,1715236960703,-1100.0,0.00042944,30]
[326688965,1715236960768,-1300.0,0.00042944,30]
[326688966,1715236960832,-405.0,0.00042986,120]
[326688967,1715236960902,-2708.0,0.00042989,45]
[326688968,1715236960971,-499.99999999,0.00042999,120]
[326688969,1715236961035,-2000.0,0.00043,30]
[326688970,1715236961097,-950.0,0.00043,120]
[326688971,1715236961161,-20000.0,0.00043,120]
[326688972,1715236961224,-20000.0,0.00043,120]
[326688973,1715236961287,-300.0,0.00043,30]
[326688974,1715236961348,-1000.0,0.00043,120]
[326688975,1715236961414,-1000000.0,0.00043,50]
[326688976,1715236961482,-3675.70422256,0.00043,30]
[326688977,1715236961548,-444.36278243,0.00043,30]
[326688978,1715236961622,-405.0,0.00043292,120]
[326688979,1715236961692,-20333.50502941,0.000433,30]
[326688980,1715236961759,-151.0,0.000434,39]
[326688981,1715236961825,-22261.62164105,0.0004349,30]